bitfinex-derivatives/quotes_SOLF0:USTF0_20250924
["timestamp","ask_amount","ask_price","bid_price","bid_amount"]
[1758708092734,1.80045861,211.07,211.01,9.37180193]
[1758708092936,4.2626,211.08,211.01,9.37180193]
[1758708093132,1.80045861,211.07,211.01,9.37180193]
[1758708093329,4.2626,211.08,211.01,1.37180193]
[1758708093537,1.80003061,211.07,211.01,9.37180193]
[1758708093835,4.2626,211.08,211.01,9.37180193]
[1758708094631,4.2626,211.08,211.01,8.0]
[1758708099842,4.2628,211.07,211.01,8.0]
[1758708100042,11.6228,211.07,211.01,8.0]
[1758708101139,7.36,211.07,210.97,8.0]
[1758708101441,7.36,211.07,210.98,115.7]
[1758708102047,4.2634,211.04,210.98,115.7]
[1758708102238,7.36,211.07,210.92,8.0]
[1758708102239,66.3217,211.03,210.92,8.0]
[1758708102442,7.36,211.02,210.94,8.0]
[1758708103640,7.36,211.06,210.94,8.0]
[1758708104944,4.2633,211.04,210.98,8.0]
[1758708105343,7.36,211.06,210.98,8.0]
[1758708106049,7.36,211.01,210.92,12.2657]
[1758708106340,7.36,211.01,210.93,115.78]
[1758708107240,11.6239,211.01,210.93,120.0454]
[1758708107445,11.6239,211.01,210.94,8.0]
[1758708107945,4.2642,211.0,210.94,12.2651]
[1758708108340,2.14071191,211.05,210.94,8.0]
[1758708108548,7.36,211.04,210.94,8.0]
[1758708109946,4.2644,210.99,210.93,123.78]
[1758708110645,7.36,211.01,210.89,8.0]
[1758708110853,7.36,211.0,210.9,115.78]
[1758708111145,7.36,211.0,210.91,8.0]
[1758708111748,4.265,210.96,210.91,8.0]
[1758708111946,4.265,210.96,210.9,123.78]
[1758708113644,4.2646,210.98,210.91,7.52]
[1758708115644,4.2648,210.97,210.91,7.52]
[1758708118351,11.6242,211.0,210.91,7.52]
[1758708118552,4.2642,211.0,210.91,7.52]
[1758708119856,4.2642,211.0,210.92,4.2656]
[1758708120156,4.2642,211.0,210.93,7.98]
[1758708122758,4.2642,211.0,210.94,4.2652]
[1758708123657,4.2644,210.99,210.93,7.98]
[1758708125256,4.2647,210.98,210.93,115.64]
[1758708125457,11.6647,210.98,210.94,7.98]
[1758708125657,4.2647,210.98,210.94,7.98]
[1758708125859,4.2642,211.0,210.94,7.98]
[1758708126860,11.6644,210.99,210.93,127.8854]
[1758708127352,4.2646,210.98,210.93,123.62]
[1758708127553,11.6646,210.98,210.94,7.98]
[1758708128066,11.6646,210.98,210.93,115.64]
[1758708128660,4.2642,211.0,210.94,7.98]
[1758708129758,4.2642,211.0,210.94,12.2452]
[1758708131855,4.2642,211.0,210.95,7.98]
[1758708132055,4.2637,211.02,210.96,7.98]
[1758708133355,7.4,211.08,210.95,7.98]
[1758708133556,1.70141943,211.07,210.96,7.98]
[1758708133852,1.70141943,211.06,210.97,7.98]
[1758708134062,4.2629,211.06,211.0,4.264]
[1758708134262,4.2629,211.06,211.01,115.58]
[1758708134456,7.4,211.14,211.02,7.98]
[1758708134764,1.70145819,211.13,211.02,7.98]
[1758708134966,1.70145819,211.12,211.02,7.98]
[1758708135155,1.70145819,211.11,211.02,7.98]
[1758708135461,1.70145819,211.1,211.02,7.98]
[1758708135655,1.70145819,211.09,211.02,7.98]
[1758708135857,4.2617,211.12,211.02,7.98]
[1758708136063,1.70141439,211.11,211.02,7.98]
[1758708136258,1.70141439,211.1,211.02,7.98]
[1758708136459,4.2617,211.12,211.02,7.98]
[1758708136765,1.70130168,211.11,211.03,4.2633]
[1758708136964,7.4,211.14,211.02,7.98]
[1758708137263,7.4,211.14,210.98,3.9478765]
[1758708137264,7.4,211.08,210.98,3.9478765]
[1758708137460,66.3026,211.09,210.98,7.98]
[1758708137461,7.4,211.06,210.98,7.98]
[1758708137964,7.4,211.03,210.96,34.18]
[1758708138359,4.2631,211.05,210.97,12.2447]
[1758708139267,4.2634,211.04,210.97,7.98]
[1758708139661,7.4,211.05,210.97,7.98]
[1758708139967,1.7013556,211.04,210.98,69.72]
[1758708140165,7.4,211.02,210.98,69.72]
[1758708140366,7.4,211.03,210.99,7.98]
[1758708141256,7.4,211.02,210.98,69.72]
[1758708141466,7.4,211.02,210.98,77.7]
[1758708142671,7.4,211.02,210.99,7.98]
[1758708143767,68.45011191,211.07,210.95,7.5]
[1758708143768,2.14071191,211.04,210.95,7.5]
[1758708143975,9.57236922,211.03,210.95,7.5]
[1758708144270,1.70236922,211.02,210.95,7.5]
[1758708144572,4.2644,210.99,210.95,7.5]
[1758708144769,7.87,210.98,210.93,116.04]
[1758708144970,7.87,210.98,210.93,123.54]
[1758708145573,66.324,211.03,210.89,127.4878765]
[1758708145574,7.87,210.97,210.89,127.4878765]
[1758708146874,4.265,210.96,210.89,127.4878765]
[1758708147073,7.87,210.97,210.9,3.9478765]
[1758708149169,12.1349,210.97,210.9,3.9478765]
[1758708150676,7.87,211.01,210.91,7.5]
[1758708150878,1.70316568,211.0,210.92,7.5]
[1758708151177,1.70316568,210.99,210.92,7.5]
[1758708151380,4.2642,211.0,210.92,11.7655]
[1758708151579,1.70315587,210.99,210.92,7.5]
[1758708151875,7.87,211.01,210.92,7.5]
[1758708152177,1.70315475,211.0,210.93,4.2653]
[1758708152376,12.134,211.01,210.93,4.2653]
[1758708152377,12.134,211.01,210.94,7.5]
[1758708152577,12.134,211.01,210.95,116.02]
[1758708154075,4.264,211.01,210.95,116.02]
[1758708154281,1.7626721,211.0,210.95,116.02]
[1758708154575,10.01071191,211.05,210.96,7.5]
[1758708154773,1.76258429,211.04,210.96,7.5]
[1758708154969,7.87,211.05,210.96,7.5]
[1758708154970,1.76258429,211.03,210.96,7.5]
[1758708155178,1.76258429,211.02,210.96,7.5]
[1758708155379,1.76258429,211.01,210.95,120.285]
[1758708155574,7.87,211.05,210.96,7.5]
[1758708155776,1.76256317,211.04,210.96,7.5]
[1758708155975,1.76256317,211.03,210.96,7.5]
[1758708156176,1.76256317,211.02,210.96,7.5]
[1758708156370,1.76256317,211.01,210.96,7.5]
[1758708156681,1.37081853,211.04,210.96,7.5]
[1758708156978,1.37081853,211.0,210.92,11.4478765]
[1758708157184,1.37081853,210.96,210.9,3.9478765]
[1758708157387,9.24081853,210.96,210.92,105.16]
[1758708157879,5.63591853,210.96,210.92,116.06]
[1758708158080,5.63591853,210.96,210.88,356.8464]
[1758708158081,1.37081853,210.94,210.88,349.0278765]
[1758708158379,1.37081853,210.93,210.89,116.04]
[1758708158579,7.87,210.92,210.89,116.04]
[1758708158786,9.24081853,210.91,210.89,116.04]
[1758708159581,4.2663,210.89,210.86,7.5]
[1758708159782,12.1363,210.89,210.86,116.16]
[1758708159987,7.87,210.89,210.86,116.16]
[1758708160182,4.2666,210.88,210.86,116.16]
[1758708160385,9.24081853,210.89,210.81,3.9478765]
[1758708160589,9.24081853,210.87,210.82,116.2]
[1758708160882,1.76146079,210.86,210.82,123.7]
[1758708161092,1.37081853,210.89,210.84,7.5]
[1758708161384,1.76021275,210.88,210.82,116.2]
[1758708161589,1.37081853,210.89,210.83,7.5]
[1758708161789,1.76014459,210.88,210.82,123.7]
[1758708161993,1.37081853,210.89,210.82,123.7]
[1758708162188,1.76014459,210.88,210.82,123.7]
[1758708162385,12.1361,210.91,210.83,7.5]
[1758708162386,13.50691853,210.91,210.83,7.5]
[1758708163589,9.24081853,210.91,210.84,4.2673]
[1758708165792,9.24081853,210.91,210.83,7.5]
[1758708168000,1.37081853,210.89,210.83,7.5]
[1758708168192,7.87,210.88,210.79,7.5]
[1758708168499,7.87,210.88,210.78,1.37081853]
[1758708168500,9.24081853,210.87,210.82,123.72]
[1758708168699,13.50761853,210.87,210.82,123.72]
[1758708169698,13.50761853,210.87,210.82,116.22]
[1758708169997,13.50761853,210.87,210.83,7.5]
[1758708170196,5.63711853,210.89,210.83,7.5]
[1758708172705,9.24081853,210.91,210.83,7.5]
[1758708173703,13.50681853,210.91,210.83,7.5]
[1758708175506,12.136,210.91,210.84,4.2673]
[1758708177912,4.2655,210.93,210.85,7.52]
[1758708178109,7.93,210.95,210.86,1.37081853]
[1758708178314,7.93,210.95,210.87,7.52]
[1758708178615,7.93,210.95,210.88,120.4463]
[1758708178911,7.93,210.95,210.89,7.52]
[1758708179507,9.38081853,210.98,210.89,7.52]
[1758708179914,9.38081853,210.98,210.89,11.7861]
[1758708180211,1.74289334,210.97,210.89,11.7861]
[1758708180410,9.38081853,210.98,210.89,11.7861]
[1758708180605,1.74289334,210.97,210.89,11.7861]
[1758708180806,4.265,210.96,210.89,11.7861]
[1758708181720,12.2745,210.98,210.9,1.37081853]
[1758708182912,12.2745,210.98,210.91,4.2658]
[1758708183114,4.2648,210.97,210.9,1.37081853]
[1758708183309,8.01,210.98,210.89,7.5]
[1758708183516,8.01,210.96,210.89,123.68]
[1758708184909,8.01,210.94,210.89,116.18]
[1758708185115,1.37081853,210.97,210.9,7.5]
[1758708185412,1.74556312,210.96,210.9,7.5]
[1758708185609,1.37081853,210.97,210.9,7.5]
[1758708185914,6.01046312,210.96,210.9,7.5]
[1758708186114,4.2649,210.96,210.9,7.5]
[1758708186615,8.01,210.94,210.9,7.5]
[1758708187109,8.01,210.96,210.89,116.18]
[1758708187314,8.01,210.94,210.88,116.16]
[1758708187508,8.01,210.92,210.88,116.16]
[1758708188812,8.01,210.91,210.88,116.16]
[1758708189718,12.276,210.91,210.88,116.16]
[1758708191110,12.276,210.91,210.82,3.9478765]
[1758708191111,9.75716203,210.9,210.8,11.4478765]
[1758708191314,9.75716203,210.9,210.8,7.5]
[1758708191315,8.01,210.87,210.8,7.5]
[1758708191618,3.11801076,210.86,210.8,123.7]
[1758708191821,12.2774,210.84,210.8,123.7]
[1758708192212,8.01,210.89,210.81,8.87081853]
[1758708192621,1.37081853,210.9,210.81,8.87081853]
[1758708192820,1.74657156,210.89,210.81,8.87081853]
[1758708193023,5.63691853,210.9,210.82,4.2676]
[1758708193321,8.01,210.92,210.84,7.5]
[1758708193614,8.01,210.92,210.85,117.57081853]
[1758708194416,8.01,210.92,210.86,7.5]
[1758708195522,9.38081853,210.92,210.86,7.5]
[1758708195713,1.74695386,210.91,210.86,7.5]
[1758708195913,1.37081853,210.9,210.85,116.2]
[1758708196118,8.01,210.88,210.85,116.2]
[1758708197414,4.2665,210.89,210.85,123.7]
[1758708198125,1.72361437,210.88,210.85,123.7]
[1758708198319,4.2665,210.89,210.85,123.7]
[1758708198519,1.7236413,210.88,210.85,123.7]
[1758708198723,4.2665,210.89,210.85,123.7]
[1758708198924,1.7236413,210.88,210.85,123.7]
[1758708199228,4.2665,210.89,210.85,123.7]
[1758708199528,1.72412087,210.88,210.85,123.7]
[1758708199723,12.2765,210.89,210.85,123.7]
[1758708199928,1.72412087,210.88,210.85,123.7]
[1758708200130,12.2765,210.89,210.85,123.7]
[1758708200330,1.72493142,210.88,210.85,123.7]
[1758708200628,8.01,210.89,210.86,7.5]
[1758708200829,1.72493047,210.88,210.86,7.5]
[1758708201028,8.01,210.9,210.86,7.5]
[1758708201229,1.72587714,210.89,210.86,7.5]
[1758708201426,1.72587714,210.88,210.86,7.5]
[1758708201631,12.2762,210.9,210.86,7.5]
[1758708201836,1.72592112,210.89,210.86,7.5]
[1758708202025,12.2762,210.9,210.86,7.5]
[1758708202026,1.72592112,210.88,210.86,7.5]
[1758708202229,12.2762,210.9,210.86,7.5]
[1758708202230,1.72592112,210.87,210.86,7.5]
[1758708202834,1.72592112,210.89,210.86,7.5]
[1758708203029,1.72592112,210.88,210.86,7.5]
[1758708203231,1.72592112,210.87,210.86,7.5]
[1758708203430,1.72592112,210.89,210.86,7.5]
[1758708203631,1.72592112,210.88,210.86,7.5]
[1758708203831,1.72592112,210.87,210.86,7.5]
[1758708204031,1.72592112,210.89,210.86,7.5]
[1758708204232,1.72592112,210.88,210.86,7.5]
[1758708204434,1.72592112,210.87,210.86,7.5]
[1758708204632,1.72592112,210.89,210.86,7.5]
[1758708204834,1.72592112,210.88,210.85,116.2]
[1758708205034,1.37081853,210.93,210.86,7.43]
[1758708205234,2.91244686,210.92,210.86,7.43]
[1758708205431,1.72660091,210.91,210.85,116.2]
[1758708205643,1.72660091,210.9,210.85,116.2]
[1758708205937,1.72660091,210.89,210.86,7.43]
[1758708206134,4.2658,210.92,210.86,7.43]
[1758708206330,9.74678104,210.91,210.85,123.63]
[1758708206542,66.3497,210.94,210.85,123.63]
[1758708206543,8.02,210.89,210.85,123.63]
[1758708206739,14.01338104,210.88,210.85,116.2]
[1758708207037,1.72678104,210.87,210.86,7.43]
[1758708207738,1.72678104,210.89,210.86,7.43]
[1758708207929,1.72681251,210.88,210.85,116.2]
[1758708208131,4.266,210.91,210.85,123.63]
[1758708208328,1.72679345,210.9,210.85,116.2]
[1758708208532,1.72679345,210.89,210.86,7.43]
[1758708208735,1.72679345,210.88,210.86,7.43]
[1758708209033,4.266,210.91,210.86,7.43]
[1758708209242,1.72671429,210.9,210.85,116.2]
[1758708209538,1.72671429,210.89,210.86,7.43]
[1758708209729,1.72671429,210.88,210.86,7.43]
[1758708209928,4.266,210.91,210.86,7.43]
[1758708210133,1.72678504,210.9,210.85,116.2]
[1758708210334,1.72678504,210.89,210.85,116.2]
[1758708210532,1.72678504,210.88,210.85,116.2]
[1758708210736,4.266,210.91,210.85,123.63]
[1758708210938,1.72677832,210.9,210.85,116.2]
[1758708211136,1.72677832,210.89,210.85,116.2]
[1758708211340,1.72677832,210.88,210.86,7.43]
[1758708211638,4.2662,210.9,210.85,116.2]
[1758708211937,1.37081853,210.95,210.86,7.43]
[1758708212129,1.72675431,210.94,210.87,7.43]
[1758708212336,1.72675431,210.93,210.87,7.43]
[1758708212533,1.72675431,210.92,210.87,7.43]
[1758708212729,1.72675431,210.91,210.87,7.43]
[1758708212933,4.2653,210.94,210.87,7.43]
[1758708213129,1.72668852,210.93,210.87,7.43]
[1758708213434,1.37081853,210.95,210.88,4.2664]
[1758708213634,1.72665175,210.94,210.89,7.43]
[1758708213834,1.72665175,210.93,210.9,116.18]
[1758708214134,1.37081853,210.95,210.9,116.18]
[1758708214340,1.71580303,210.94,210.9,116.18]
[1758708214532,1.71580303,210.93,210.9,116.18]
[1758708214731,5.63601853,210.95,210.91,7.43]
[1758708214931,1.71580303,210.94,210.9,116.18]
[1758708215129,1.71580303,210.93,210.91,7.43]
[1758708215439,4.2654,210.94,210.91,7.43]
[1758708215738,1.71580268,210.93,210.91,7.43]
[1758708215939,4.2654,210.94,210.91,7.43]
[1758708216140,1.71580365,210.93,210.91,7.43]
[1758708216436,4.2654,210.94,210.9,116.18]
[1758708216636,1.71582014,210.93,210.91,7.43]
[1758708216834,4.2654,210.94,210.91,7.43]
[1758708217033,1.71582014,210.93,210.91,7.43]
[1758708217242,4.2654,210.94,210.91,7.43]
[1758708217540,1.71585226,210.93,210.91,7.43]
[1758708217739,1.71585226,210.92,210.91,7.43]
[1758708219240,5.98165226,210.92,210.9,116.12]
[1758708219439,1.71585226,210.91,210.9,123.55]
[1758708219645,4.2658,210.92,210.91,7.43]
[1758708219948,5.98171918,210.92,210.91,7.43]
[1758708220341,5.98171918,210.92,210.9,116.12]
[1758708220545,1.71594432,210.91,210.9,123.55]
[1758708221340,1.71594432,210.91,210.86,3.9478765]
[1758708221533,1.71594335,210.9,210.87,113.73]
[1758708221739,8.02,210.92,210.88,106.3]
[1758708221942,5.98185242,210.91,210.88,113.73]
[1758708222247,1.71595242,210.9,210.89,7.43]
[1758708227046,4.2659,210.91,210.89,7.43]
[1758708227246,1.71660689,210.9,210.89,7.43]
[1758708230351,4.2663,210.89,210.86,7.43]
[1758708230648,4.2663,210.89,210.87,7.43]
[1758708230853,1.71730415,210.88,210.86,123.41]
[1758708231040,4.2666,210.88,210.86,123.41]
[1758708231240,1.71750562,210.87,210.84,115.98]
[1758708231449,8.02,210.85,210.81,11.3778765]
[1758708231648,4.2675,210.83,210.81,7.43]
[1758708231851,8.02,210.85,210.8,7.43]
[1758708232053,2.14348333,210.89,210.8,7.43]
[1758708232054,1.71753316,210.84,210.8,3.9478765]
[1758708232252,8.02,210.88,210.8,7.43]
[1758708232452,2.903452,210.87,210.8,7.43]
[1758708232752,4.2672,210.85,210.8,7.43]
[1758708233045,1.71734142,210.84,210.8,3.9478765]
[1758708233248,2.14348333,210.89,210.82,7.43]
[1758708233443,1.71713931,210.88,210.82,7.43]
[1758708233639,1.71713931,210.87,210.82,7.49]
[1758708233847,1.71713931,210.86,210.82,3.9478765]
[1758708234055,2.14348333,210.89,210.83,7.49]
[1758708234250,1.71713434,210.88,210.82,7.49]
[1758708234451,1.71713434,210.87,210.82,7.49]
[1758708234645,1.71713434,210.86,210.81,3.9478765]
[1758708234847,4.2668,210.87,210.81,8.2156765]
[1758708235050,1.71709129,210.86,210.82,7.49]
[1758708235353,4.2668,210.87,210.82,7.49]
[1758708235648,1.71703999,210.86,210.82,7.49]
[1758708235859,4.2668,210.87,210.81,8.2156765]
[1758708236152,1.71703999,210.86,210.82,7.49]
[1758708236448,4.2668,210.87,210.82,7.49]
[1758708236646,4.2668,210.87,210.81,8.2156765]
[1758708236647,1.71268861,210.86,210.81,8.2156765]
[1758708236845,4.2668,210.87,210.81,8.2156765]
[1758708237048,1.71268861,210.86,210.82,7.49]
[1758708237242,4.2668,210.87,210.82,3.9478765]
[1758708237442,1.71290587,210.86,210.83,7.49]
[1758708237750,4.267,210.86,210.83,7.49]
[1758708238051,4.267,210.86,210.82,3.9478765]
[1758708238251,4.267,210.86,210.83,7.49]
[1758708238452,4.267,210.86,210.82,3.9478765]
[1758708238650,1.7128431,210.85,210.83,7.49]
[1758708238852,11.707,210.86,210.83,7.49]
[1758708239060,5.98004314,210.85,210.82,7.49]
[1758708239352,4.2672,210.85,210.82,7.41]
[1758708240251,4.2668,210.87,210.81,3.9478765]
[1758708240452,1.71270063,210.86,210.82,7.41]
[1758708240757,4.2668,210.87,210.83,7.41]
[1758708240960,1.71269964,210.86,210.82,3.9478765]
[1758708241150,4.2668,210.87,210.83,7.41]
[1758708241350,1.71266914,210.86,210.83,7.41]
[1758708241545,4.2668,210.87,210.83,7.41]
[1758708241746,1.71266906,210.86,210.83,7.41]
[1758708242055,7.25,210.92,210.85,7.41]
[1758708242251,1.71265811,210.91,210.85,3.9478765]
[1758708242451,1.71265811,210.9,210.84,119.9078765]
[1758708242657,1.71265811,210.89,210.85,7.41]
[1758708242857,4.2662,210.9,210.84,124.1749765]
[1758708243059,1.71269971,210.89,210.85,7.41]
[1758708243355,4.2662,210.9,210.84,124.1749765]
[1758708243555,1.71274865,210.89,210.85,7.41]
[1758708243757,4.2662,210.9,210.85,7.41]
[1758708243961,1.71274865,210.89,210.84,124.1749765]
[1758708244147,4.2662,210.9,210.85,7.41]
[1758708244352,1.71675658,210.89,210.84,124.1749765]
[1758708244555,1.71675658,210.88,210.86,7.41]
[1758708244753,4.2662,210.9,210.86,7.41]
[1758708245053,1.71675264,210.89,210.86,4.2667]
[1758708245259,4.2658,210.92,210.87,7.41]
[1758708245450,1.71679801,210.91,210.87,7.41]
[1758708245649,1.71679801,210.9,210.86,8.2145765]
[1758708245849,4.2658,210.92,210.86,8.2145765]
[1758708246051,1.71679009,210.91,210.86,8.2145765]
[1758708246250,1.71679009,210.9,210.88,7.41]
[1758708246451,7.25,210.98,210.9,7.41]
[1758708246647,1.71677727,210.97,210.9,7.41]
[1758708246853,1.71677727,210.96,210.9,7.41]
[1758708247156,1.71677727,210.95,210.92,7.41]
[1758708247357,1.71677727,210.95,210.91,116.02]
[1758708247358,1.71677727,210.94,210.9,4.266]
[1758708247658,4.2649,210.97,210.91,123.43]
[1758708248555,4.2643,210.99,210.92,7.41]
[1758708249758,11.5139,211.01,210.94,7.41]
[1758708249957,7.25,211.07,210.95,7.41]
[1758708250155,1.18532445,211.06,210.97,7.41]
[1758708250354,1.18532445,211.05,210.97,7.41]
[1758708250657,1.18532445,211.04,210.97,7.41]
[1758708250858,7.25,211.07,210.97,7.41]
[1758708251764,4.2629,211.06,210.97,11.6745]
[1758708252153,66.2942,211.12,210.99,7.41]
[1758708252362,4.2624,211.09,210.99,7.41]
[1758708252555,7.25,211.11,210.99,7.41]
[1758708252760,7.25,211.11,211.02,2.14348333]
[1758708253063,7.25,211.11,211.04,7.41]
[1758708254157,7.25,211.11,210.99,7.41]
[1758708254357,4.262,211.1,211.0,116.08]
[1758708254562,7.25,211.09,211.0,116.08]
[1758708254967,7.25,211.09,211.01,7.41]
[1758708255265,66.2901,211.13,211.01,9.55348333]
[1758708255266,11.5115,211.13,211.01,9.55348333]
[1758708255567,11.5115,211.13,211.02,7.41]
[1758708256062,11.5115,211.13,211.05,7.41]
[1758708256263,11.5115,211.13,211.04,4.2632]
[1758708256264,11.5115,211.13,211.07,7.41]
[1758708257067,7.25,211.13,211.07,7.41]
[1758708258774,273.5217,211.26,211.07,7.41]
[1758708258775,7.25,211.28,211.13,7.41]
[1758708258964,7.25,211.28,211.16,7.41]
[1758708259474,7.25,211.28,211.17,116.96]
[1758708259770,11.5092,211.24,211.16,7.41]
[1758708259966,11.5092,211.24,211.17,116.96]
[1758708262371,4.2596,211.22,211.18,124.25]
[1758708262878,4.2596,211.22,211.19,7.41]
[1758708265071,7.25,211.24,211.19,7.41]
[1758708265269,7.25,211.24,211.18,116.84]
[1758708265467,7.25,211.24,211.18,124.12]
[1758708267965,11.5094,211.24,211.18,124.12]
[1758708268781,11.5094,211.24,211.19,124.0]
[1758708269670,67.06396606,211.29,211.13,2.14348333]
[1758708269671,7.75,211.22,211.13,2.14348333]
[1758708269866,7.75,211.22,211.14,123.94]
[1758708270479,4.26,211.2,211.14,123.94]
[1758708270669,4.26,211.2,211.14,7.28]
[1758708270865,4.26,211.2,211.16,7.28]
[1758708271070,4.26,211.2,211.15,116.64]
[1758708271272,4.26,211.2,211.16,7.28]
[1758708272070,7.75,211.22,211.16,7.28]
[1758708272375,4.2594,211.24,211.16,7.28]
[1758708273683,4.2596,211.22,211.16,7.28]
[1758708273882,4.2596,211.22,211.17,116.6]
[1758708274179,7.75,211.26,211.18,7.28]
[1758708274384,4.2592,211.24,211.18,7.28]
[1758708274982,12.0088,211.26,211.18,7.28]
[1758708276678,12.0088,211.26,211.18,8.64771315]
[1758708278987,12.0088,211.26,211.19,7.28]
[1758708279581,12.0088,211.26,211.2,41.28]
[1758708281091,12.0088,211.26,211.21,80.04]
[1758708281388,7.75,211.25,211.21,87.32]
[1758708282992,7.75,211.25,211.22,7.28]
[1758708283694,4.2588,211.26,211.22,7.28]
[1758708283893,12.0088,211.26,211.22,7.28]
[1758708284589,7.75,211.25,211.22,7.28]
[1758708286292,7.75,211.25,211.18,5.62791315]
[1758708286293,12.0091,211.25,211.18,1.36771315]
[1758708286495,12.0091,211.25,211.19,91.86]
[1758708287791,7.75,211.25,211.14,7.28]
[1758708288095,7.75,211.25,211.18,8.64771315]
[1758708288892,7.75,211.25,211.15,37.92]
[1758708288893,66.2543,211.24,211.09,7.28]
[1758708289089,7.75,211.23,211.15,1.36771315]
[1758708289499,7.75,211.23,211.16,7.28]
[1758708290894,4.2601,211.2,211.16,7.28]
[1758708291100,4.2601,211.2,211.16,123.62]
[1758708292004,4.2602,211.19,211.16,116.34]
[1758708292191,7.75,211.22,211.1,3.9478765]
[1758708292397,7.75,211.2,211.11,8.64771315]
[1758708292597,7.75,211.18,211.11,8.64771315]
[1758708292898,7.75,211.18,211.11,123.66]
[1758708293097,4.2615,211.13,211.11,7.28]
[1758708296906,7.52,211.15,211.09,7.37]
[1758708297105,7.52,211.15,211.09,123.73]
[1758708297903,4.2616,211.12,211.09,116.36]
[1758708298210,4.2616,211.12,211.1,7.37]
[1758708299712,11.5616,211.12,211.1,116.36]
[1758708299907,11.5621,211.1,211.07,116.3]
[1758708300106,1.36771315,211.13,211.03,7.92]
[1758708300107,1.36771315,211.11,211.06,116.42]
[1758708300308,7.3,211.07,211.06,116.42]
[1758708300512,8.48475984,211.07,210.98,7.92]
[1758708300814,67.67291315,211.08,210.95,3.9478765]
[1758708300815,4.2641,211.0,210.95,3.9478765]
[1758708301009,11.5641,211.0,210.97,116.52]
[1758708301515,4.2644,210.98,210.94,7.92]
[1758708301706,7.3,210.98,210.89,11.8678765]
[1758708302014,1.36771315,210.96,210.9,43.8]
[1758708302213,11.5652,210.94,210.89,7.92]
[1758708302407,7.3,210.94,210.9,116.68]
[1758708302608,1.36771315,210.96,210.9,124.6]
[1758708303409,1.36771315,210.98,210.9,124.6]
[1758708303611,1.36771315,211.0,210.91,7.92]
[1758708304410,8.66771315,211.03,210.91,7.92]
[1758708305405,4.2636,211.02,210.91,9.28771315]
[1758708305607,1.36771315,211.01,210.91,9.28771315]
[1758708306210,1.36771315,210.99,210.91,7.92]
[1758708306407,1.36771315,210.96,210.91,7.92]
[1758708306617,7.3,210.95,210.91,7.92]
[1758708307214,1.36771315,210.96,210.9,37.88]
[1758708307417,8.66771315,210.96,210.9,37.88]
[1758708307618,8.66771315,210.96,210.87,7.92]
[1758708307818,8.66771315,210.96,210.88,116.76]
[1758708308220,8.66771315,210.96,210.87,7.92]
[1758708308415,4.2654,210.93,210.87,7.92]
[1758708308623,8.66771315,210.93,210.87,7.92]
[1758708308821,8.66771315,210.93,210.87,124.7]
[1758708309220,7.3,210.93,210.87,124.7]
[1758708309423,8.66771315,210.92,210.87,124.7]
[1758708309622,7.3,210.91,210.87,124.7]
[1758708310322,1.36771315,210.93,210.88,7.92]